Cogmind - Beta 15 @@@ ROGUE MODE // 2025.09.26 @ 08:39:48 Player: mgobin-777 Result: Destroyed by H-55 Commando with Assault Rifle Performance ------------- Evolutions (2) 1000 Regions Visited (4) 800 Robots Destroyed (48) 240 Value Destroyed (1076) 1076 Prototype IDs (12) 240 Alien Tech Used (0) 0 Bonus (0) 0 TOTAL SCORE: 3356 Bonus ------- None Cogmind --------- Core Integrity 0/550 Matter 270/300 Energy 56/160 System Corruption 0% Temperature Danger (427) Movement Walking (130) Location -8/Materials Parts ------- > --- POWER (1) -------- Light Nuclear Core > --- PROPULSION (3) --- Titanium Leg Cargo Legs > --- UTILITY (3) ------ High-capacity Storage Unit Improved Sensor Array Signal Interpreter > --- WEAPON (4) ------- Medium Laser Medium Laser Enhanced Flamer > --- INVENTORY (20) --- Nuclear Core Titanium Leg Titanium Leg Small Storage Unit Cargo Storage Unit Improved Sensor Array Targeting Computer Medium Armor Plating Hardened Medium Armor Plating Hardened Medium Armor Plating Grenade Launcher Peak State ------------ > --- POWER ------------ Light Deuterium Engine > --- PROPULSION ------- Titanium Leg Cargo Legs > --- UTILITY ---------- Heat Sink Improved Heat Sink High-capacity Storage Unit Experimental Sensor Array Signal Interpreter > --- WEAPON ----------- Particle Gun Ion Cannon Light Cannon Heavy Flail > --- INVENTORY -------- Light Nuclear Core Titanium Leg Titanium Leg Small Storage Unit Cargo Storage Unit Improved Sensor Array Targeting Computer Medium Armor Plating Hardened Medium Armor Plating Hardened Medium Armor Plating Beam Cannon Battle Rifle Grenade Launcher Enhanced Flamer [Rating: 49] Favorites ----------- Power Ion Engine Engine Ion Engine Power Core Light Nuclear Core Propulsion Aluminum Leg Treads Light Treads Leg Aluminum Leg Utility High-capacity Storage Unit Device Experimental Sensor Array Storage High-capacity Storage Unit Processor Signal Interpreter Weapon Light Cannon Energy Gun Small Laser Energy Cannon Beam Cannon Ballistic Gun Makeshift Shrapnel Gun Ballistic Cannon Light Cannon Launcher Grenade Launcher Special Weapon Enhanced Flamer Impact Weapon Heavy Flail Build | -11 -10 -10 -10 -8 ------- Run | Yrd Mat Min Sub Mat Slots Evolved 4 | . . . . 4 Power . | . . . . . Propulsion 1 | . . . . 1 Utility 1 | . . . . 1 Weapon 2 | . . . . 2 Parts Attached 38 | 7 13 2 4 12 Power 7 | 1 3 . . 3 Engine 5 | 1 3 . . 1 Core 2 | . . . . 2 Reactor . | . . . . . Propulsion 6 | 2 2 . 1 1 Treads 2 | 2 . . . . Leg 4 | . 2 . 1 1 Wheel . | . . . . . Hover . | . . . . . Flight . | . . . . . Utility 9 | 1 3 1 2 2 Device 6 | . 2 1 2 1 Storage 2 | 1 1 . . . Processor 1 | . . . . 1 Hackware . | . . . . . Protection . | . . . . . Artifact . | . . . . . Weapon 16 | 3 5 1 1 6 Energy Gun 8 | 3 2 . . 3 Energy Cannon 2 | . 1 . . 1 Ballistic Gun 2 | . . . 1 1 Ballistic Cannon 1 | . 1 . . . Launcher 1 | . 1 . . . Special Weapon 1 | . . 1 . . Impact Weapon 1 | . . . . 1 Slashing Weapon . | . . . . . Piercing Weapon . | . . . . . Special Melee Weapon . | . . . . . Unidentified Prototypes 1 | . . 1 . . Parts Lost 12 | . 2 . . 10 Power 2 | . . . . 2 Propulsion 2 | . 1 . . 1 Utility 2 | . . . . 2 Weapon 6 | . 1 . . 5 Highest Loss Streak 5 | . 1 . . 5 To Critical Strikes 1 | . 1 . . . Average Backups 9 | . 6 12 13 12 Power . | . . 1 1 1 Propulsion 1 | . . 1 2 2 Utility 4 | . 3 6 5 5 Weapon 3 | . 2 3 4 3 Tool/Special . | . . . . . Unused Backups 13 | . 1 . . 12 Power 2 | . . . . 2 Propulsion 4 | . . . . 4 Utility 7 | . 1 . . 6 Weapon . | . . . . . Tool/Special . | . . . . . Average Slot Usage (%) 95 | . 94 100 95 87 Engine 12 | . 14 14 12 4 Treads 4 | . 12 . . . Leg 20 | . 15 28 21 15 Device 13 | . 9 14 21 15 Storage 13 | . 14 14 12 7 Processor 1 | . . . . 7 Energy Gun 6 | . 14 . . 7 Energy Cannon 5 | . 11 1 . 7 Ballistic Gun 1 | . . . 7 4 Ballistic Cannon 7 | . 1 14 12 4 Special Weapon 5 | . . 12 4 . Peak Build Rating 49 | 6 10 18 38 49 Average Rating 16 | 4 8 14 25 39 On Entrance 13 | . 6 8 18 37 Naked Turns . | . . . . . Heaviest Build 63 | 11 52 52 53 63 Greatest Support 72 | 40 40 20 55 72 Greatest Overweight (x) 2 | . 2 2 2 1 Average Overweight (x) 1 | . . 2 . . Largest Inventory Capacity 20 | 8 20 20 20 20 Average Capacity 17 | 7 13 20 20 20 Most Carried 19 | 3 11 15 19 15 Average Carried 10 | . 6 13 14 13 Final Capacity 20 | 8 20 20 20 20 Final Carried 15 | 1 11 14 15 12 Class Distribution -------------------- 73% | Mutant 16% | Scavenger-Mutant 5% | Scavenger-Skirmisher 4% | Skirmisher Dominant Class ---------------- Mutant | -10/Materials Mutant | -10/Mines Mutant | -10/Subcaves Scavenger-Skirmisher | -8/Materials Resources | -11 -10 -10 -10 -8 ----------- Run | Yrd Mat Min Sub Mat Matter Collected 813 | 145 251 142 89 186 Remotely . | . . . . . Salvage Created 1522 | . 777 158 . 587 Parts 83 | . 36 14 . 33 Haulers Intercepted 2 | . 1 . . 1 Recyclers Shooed 5 | . 3 2 . . Parts Field Recycled . | . . . . . Retrieved Matter . | . . . . . Parts Self-Destructed . | . . . . . Prevented . | . . . . . Kills | -11 -10 -10 -10 -8 ------- Run | Yrd Mat Min Sub Mat Combat Hostiles Destroyed 32 | . 16 7 . 9 Guns 6 | . 3 . . 3 Cannons 23 | . 10 7 . 6 AOE 3 | . 3 . . . Classes Destroyed 9 | . 7 1 . 1 Worker 2 | . . 2 . . Builder 3 | . 1 . . 2 Tunneler 2 | . 1 1 . . Hauler 2 | . 1 . . 1 Recycler 5 | . 3 1 . 1 Watcher 2 | . 2 . . . Swarmer 12 | . 6 6 . . Grunt 19 | . 10 1 . 8 Duelist 1 | . . . . 1 Best Kill Streak 8 | . 8 4 . 4 Combat Bots Only 6 | . 6 4 . 2 Max Kills in Single Turn 2 | . 2 1 . 1 Gunslinging . | . . . . . Exploded 2 | . 2 . . . Melee . | . . . . . Uniques/NPCs Destroyed . | . . . . . Combat | -11 -10 -10 -10 -8 -------- Run | Yrd Mat Min Sub Mat Hostile Shots Fired 237 | . 87 35 . 115 Missed 49 | . 22 7 . 20 Hits 188 | . 65 28 . 95 Melee 7 | . . . . 7 Projectile 181 | . 65 28 . 88 Critical Strikes 9 | . 4 . . 5 Damage Taken 2924 | . 704 245 . 1975 Core 749 | . 120 79 . 550 Absorbed by Shields . | . . . . . Core Remaining (%) 60 | 100 . . 20 . Volleys Fired 136 | 3 67 21 3 42 Largest 4 | 1 2 2 2 4 Hottest 180 | 40 125 110 54 180 Shots Fired 274 | 3 126 41 6 98 Gun 111 | 3 63 . 3 42 Cannon 135 | . 58 21 3 53 Launcher 5 | . 5 . . . Special 23 | . . 20 . 3 Kinetic 54 | . . 21 6 27 Thermal 215 | 3 121 20 . 71 Explosive 5 | . 5 . . . Electromagnetic . | . . . . . Robot Hit Streak 13 | 3 13 6 . 9 Robot Miss Streak 3 | . 3 3 . 2 Penetration Max . | . . . . . Secondary Targets . | . . . . . Shots Hit Robots 169 | 3 83 24 . 59 Core Hits 76 | 1 29 16 . 30 Critical Kills 1 | . . . . 1 Critical Parts Destroyed . | . . . . . Critical Strikes 8 | . . 3 . 5 Burn 7 | . . 3 . 4 Smash 1 | . . . . 1 Melee Attacks 10 | . . . . 10 Impact 10 | . . . . 10 Slashing . | . . . . . Piercing . | . . . . . Sneak Attacks 2 | . . . . 2 Combat Hostiles . | . . . . . Follow-up Attacks . | . . . . . Damage Inflicted 3148 | 32 1571 385 . 1160 Guns 913 | 32 551 . . 330 Cannons 1506 | . 699 235 . 572 Explosions 314 | . 314 . . . Melee 246 | . . . . 246 Ramming 13 | . 7 6 . . Kinetic 482 | . . 235 . 247 Thermal 2208 | 32 1365 144 . 667 Explosive 199 | . 199 . . . Electromagnetic . | . . . . . Impact 246 | . . . . 246 Slashing . | . . . . . Piercing . | . . . . . Highest Corruption . | . . . . . Average Corruption . | . . . . . Corruption Purged . | . . . . . Corruption Blocked . | . . . . . Overload Shots . | . . . . . Overflow Damage 30 | . 30 . . . Projectiles 19 | . 19 . . . Explosions 11 | . 11 . . . Melee . | . . . . . Knockbacks 8 | . . 2 . 6 Impact 1 | . . . . 1 Kinetic 7 | . . 2 . 5 Secondary . | . . . . . Self-Inflicted Damage 41 | . 41 . . . Shots 2 | . 2 . . . Rammed 1 | . 1 . . . Targets Rammed 7 | . 4 3 . . Kicked 6 | . 3 3 . . Crushed . | . . . . . Highest Temperature 451 | . 331 198 . 451 Average Temperature 131 | . 124 57 . 191 Received Heat Transfer 1143 | . 288 18 . 837 Effects 7 | . . . . 7 Shutdowns 2 | . . . . 2 Interference 5 | . . . . 5 Siege Activations . | . . . . . Martial Activations . | . . . . . Shielding Activations . | . . . . . Robots Disrupted . | . . . . . Combat Hostiles . | . . . . . Robots Corrupted . | . . . . . Combat Hostiles . | . . . . . Parts Fried . | . . . . . Impact Corruptions . | . . . . . Robots Melted . | . . . . . Combat Hostiles . | . . . . . Parts Melted 12 | . 4 6 . 2 Heat Transferred 6310 | 75 2896 1520 . 1819 Parts Sabotaged . | . . . . . Parts Stolen . | . . . . . Parts Stripped . | . . . . . Power Chain Reactions . | . . . . . Alert | -11 -10 -10 -10 -8 ------- Run | Yrd Mat Min Sub Mat Maximum Alert Level 1 | . 1 . . . Low Security (%) 94 | 100 87 100 . 100 Level 1 5 | . 12 . . . Level 2 . | . . . . . Level 3 . | . . . . . Level 4 . | . . . . . Level 5 . | . . . . . High Security . | . . . . . Max Security . | . . . . . Peak Influence 231 | . 231 80 . 51 Initial 39 | . . 39 . . Average 49 | . 101 12 . 11 Influence Increases 969 | . 514 195 . 260 Destroy 0b10 Robot/C 640 | . 320 140 . 180 Destroy 0b10 Robot/NC 80 | . 40 20 . 20 Destroy Leader 128 | . 66 20 . 42 Successful Hack 5 | . 5 . . . Disable Machine 45 | . 45 . . . Destroy Structure 41 | . 38 . . 3 Lose Combat Pursuer 30 | . . 15 . 15 Influence Decreases 943 | . 413 296 . 234 Entered New Map 62 | . . 62 . . Time Decay 761 | . 393 234 . 134 Lost Part 120 | . 20 . . 100 Squads Dispatched 3 | . 2 . . 1 Investigation 1 | . 1 . . . Extermination . | . . . . . Reinforcement 2 | . 1 . . 1 Assault . | . . . . . Garrison . | . . . . . Intercept . | . . . . . Searches Triggered . | . . . . . Construction Impeded . | . . . . . Haulers Reinforced . | . . . . . Active Scanning Responses . | . . . . . Cargo Convoy Interrupts . | . . . . . Stealth | -11 -10 -10 -10 -8 --------- Run | Yrd Mat Min Sub Mat Distress Signals 3 | . 2 . . 1 Communications Jammed . | . . . . . Distress Signals . | . . . . . Times Spotted 54 | . 28 9 . 17 Peak Tracking Total 6 | . 5 5 . 6 Tactical Retreats 2 | . . 1 . 1 Traps | -11 -10 -10 -10 -8 ------- Run | Yrd Mat Min Sub Mat Traps Triggered 2 | . 1 . . 1 Indirectly . | . . . . . Trap Hack Attempts . | . . . . . Triggered . | . . . . . Disarmed . | . . . . . Reprogrammed . | . . . . . Reused . | . . . . . Traps Extracted . | . . . . . Installed . | . . . . . Triggered . | . . . . . Machines | -11 -10 -10 -10 -8 ---------- Run | Yrd Mat Min Sub Mat Machines Disabled 4 | . 3 . 1 . Max in Single Turn 1 | . 1 . 1 . Machines Repaired . | . . . . . Machines Dismantled . | . . . . . Machines Sabotaged . | . . . . . Overloaded Fab Kills . | . . . . . Hacking | -11 -10 -10 -10 -8 --------- Run | Yrd Mat Min Sub Mat Machines Accessed 4 | . 2 . 1 1 Terminals 3 | . 2 . . 1 Fabricators . | . . . . . Repair Stations . | . . . . . Recycling Units . | . . . . . Scanalyzers . | . . . . . Garrison Access . | . . . . . Total Hacks 15 | . 5 . 9 1 Successful 13 | . 3 . 9 1 Failed 2 | . 2 . . . Catastrophic . | . . . . . Database Lockouts . | . . . . . Manual . | . . . . . Terminals 6 | . 5 . . 1 Fabricators . | . . . . . Repair Stations . | . . . . . Recycling Units . | . . . . . Scanalyzers . | . . . . . Garrison Access . | . . . . . Terminal Hacks 13 | . 3 . 9 1 Record 10 | . 1 . 8 1 Alert Level 1 | . 1 . . . Hauler Manifests 1 | . 1 . . . Proto ID Catalog 1 | . . . 1 . Fabricator Hacks . | . . . . . Repair Station Hacks . | . . . . . Recycling Unit Hacks . | . . . . . Scanalyzer . | . . . . . Garrison Access Hacks . | . . . . . Unauthorized Hacks . | . . . . . Terminals . | . . . . . Fabricators . | . . . . . Repair Stations . | . . . . . Recycling Units . | . . . . . Scanalyzers . | . . . . . Garrison Access . | . . . . . Data Cores Recovered . | . . . . . Used . | . . . . . Hacking Detections 2 | . 2 . . . Full Trace Events 1 | . 1 . . . Feedback Events . | . . . . . Feedback Blocked . | . . . . . Robot Schematics Acquired . | . . . . . Robots Built . | . . . . . Authchips . | . . . . . Time . | . . . . . Total Robot Build Rating . | . . . . . Part Schematics Acquired . | . . . . . Parts Built . | . . . . . Authchips . | . . . . . Time . | . . . . . Total Part Build Rating . | . . . . . Parts Repaired . | . . . . . Time . | . . . . . Parts Recycled . | . . . . . Recycled Matter . | . . . . . Retrieved Matter . | . . . . . Retrieved Components . | . . . . . Parts Scanalyzed . | . . . . . Part Schematics Acquired . | . . . . . Parts Damaged . | . . . . . Bothacking | -11 -10 -10 -10 -8 ------------ Run | Yrd Mat Min Sub Mat Used RIF Installer . | . . . . . Robots Hacked . | . . . . . Non-combat . | . . . . . Combat . | . . . . . Robot Hacks Applied . | . . . . . Relay Couplers Released . | . . . . . Fabnet Peak Effective % . | . . . . . Robots Rewired . | . . . . . Allies Hacked . | . . . . . Hacks Repelled . | . . . . . Allies | -11 -10 -10 -10 -8 -------- Run | Yrd Mat Min Sub Mat Total Allies . | . . . . . Largest Group . | . . . . . Highest-Rated Group . | . . . . . Highest-Rated Ally . | . . . . . Total Orders . | . . . . . Ally Attacks . | . . . . . Total Damage . | . . . . . Kills . | . . . . . Allies Corrupted . | . . . . . Allies Melted . | . . . . . Intel | -11 -10 -10 -10 -8 ------- Run | Yrd Mat Min Sub Mat Active Infowar (turns) 2697 | . 318 1422 479 478 Sensors 2697 | . 318 1422 479 478 Robot Analysis Total . | . . . . . Derelict Logs Recovered 2 | . . 2 . . Drone Launches . | . . . . . Drone Recoveries . | . . . . . Exploration | -11 -10 -10 -10 -8 ------------- Run | Yrd Mat Min Sub Mat Turns Passed 4060 | 85 1530 1423 479 543 Spaces Moved 1660 | 42 639 511 245 223 Core 7 | 7 . . . . Treads 366 | 35 331 . . . Legs 1287 | . 308 511 245 223 Wheels . | . . . . . Hover . | . . . . . Flight . | . . . . . Fastest Speed 50 | 50 120 260 130 125 Average Speed 204 | 141 195 260 187 128 Slowest Speed 260 | 160 260 260 260 200 Overloaded Moves . | . . . . . Propulsion Burnouts . | . . . . . Robots Hopped . | . . . . . Potential Cave-ins . | . . . . . Cave-ins Triggered 1 | . . . . 1 Exploration Rate (%) 43 | 3 88 92 16 20 Regions Visited 4 Branch Regions 2 Pre-discovered Areas 2 | . . 2 . . Known Exits Taken . | . . . . . Unknown Exits Taken 4 | 1 1 1 1 . Scrap Searched 3 | . . 1 2 . Spaces Dug . | . . . . . Terrain Destroyed 38 | . 35 . . 3 Melee . | . . . . . Projectile 3 | . . . . 3 AOE 35 | . 35 . . . Terrain Rammed . | . . . . . Walls Destroyed . | . . . . . Machines Disabled . | . . . . . Actions | -11 -10 -10 -10 -8 --------- Run | Yrd Mat Min Sub Mat Total 2038 | 64 785 546 260 383 Wait 113 | 6 34 1 3 69 Move 1656 | 41 638 510 244 223 Hop . | . . . . . Pick Up 51 | 7 19 6 3 16 Fast Attach . | . . . . . Attach 27 | 6 3 1 3 14 Detach 2 | . . . 2 . Swap 18 | 1 13 1 1 2 Drop 18 | . 7 3 1 7 Fire 136 | 3 67 21 3 42 Melee 10 | . . . . 10 Ram . | . . . . . Kick 6 | . 3 3 . . Crush 1 | . 1 . . . Escape Stasis . | . . . . . Rewire . | . . . . . Trap . | . . . . . Miscellaneous . | . . . . . Route ------- -11/Scrapyard -10/Materials (discovered 3 exits: [*Mat x2] / [*Min]) -10/Mines (discovered 4 exits: [*Mat x2] / [*Exi] / *Sub) -10/Subcaves -8/Materials History --------- Turn | Location | Event 12 | -11/Scrapyard | Discovered new exit (range 15) 86 | -11/Scrapyard | Entered Materials 299 | -10/Materials | Discovered new exit (range 12) 317 | -10/Materials | Build established: Mutant 495 | -10/Materials | Discovered new exit (range 15) 1061 | -10/Materials | Build established: Scavenger-Mutant 1152 | -10/Materials | Discovered new exit (range 5) 1616 | -10/Materials | Entered Mines 1694 | -10/Mines | A weapon hastily lodged in a ceiling crevice suddenly fell to the ground 1732 | -10/Mines | Build established: Mutant 1751 | -10/Mines | Core integrity fell below 50% 1854 | -10/Mines | Deemed a non-threat by the Exiles lab entrance 1857 | -10/Mines | Discovered new exit (range 5) 2225 | -10/Mines | Found a damaged Exp. Sensor Array with a note attached 2230 | -10/Mines | Found Prototype Device 2232 | -10/Mines | Identified Exp. Sensor Array 2345 | -10/Mines | Discovered new exit (range 9) 2586 | -10/Mines | Discovered new exit (range 4) 2587 | -10/Mines | Learned location of Storage (-7) 2757 | -10/Mines | Discovered new exit (range 8) 3039 | -10/Mines | Entered Subcaves 3251 | -10/Subcaves | Visited 4L-MR0's lab 3332 | -10/Subcaves | Found Cargo Legs 3335 | -10/Subcaves | Attached Cargo Legs, gained temporary slots: Utility x2 3389 | -10/Subcaves | Discovered new exit (range 8) 3408 | -10/Subcaves | Shifting Twisted Machinery released Battle Rifle 3410 | -10/Subcaves | Shifting Twisted Machinery released Flamer 3518 | -10/Subcaves | Entered Materials 3518 | -8/Materials | Evolved 4 slots: Propulsion x1, Utility x1, Weapon x2 3861 | -8/Materials | Crushed by falling debris 3861 | -8/Materials | Core integrity fell below 50% 3885 | -8/Materials | Lost 5 parts (2u3w) 3997 | -8/Materials | Core integrity fell below 20% 4061 | -8/Materials | Destroyed by H-55 Commando with Assault Rifle Last Messages --------------- 04031_ K-01 Serf cleans the Terminal. 04032_ Overheating: System interference. 04032_ Beam Cannon temporarily disabled. 04032_ Beam Cannon destroyed. 04033_ Overheating: System interference. 04033_ Signal Interpreter temporarily disabled. 04033_ K-01 Serf collects debris. 04034_ K-01 Serf cleans the Terminal. 04035_ Lgt. Nuclear Core destroyed. 04038_ W-25 Informer sends out distress signal. 04039_ K-01 Serf cleans the Terminal. 04041_ K-01 Serf collects debris. 04042_ R-06 Scavenger collects Carbon-fiber Leg. 04044_ K-01 Serf collects debris. 04049_ Power failure, Lgt. Nuclear Core shutdown. 04051_ Critical hit (Burn: +37). 04057_ L-31 Rogue destroyed. 04059_ K-01 Serf collects debris. 04061_ Penetrated by Slug. Map ----- +----------------------------------------------------+ | ?????????????????????????????????????????????????? | | ?????????????????????????????????????????????????? | | ?????????????????????????????????????????????????? | | ?????????????????????????????????????????????????? | | ?????????????????????????????????????????????????? | | ?????????????????????????????????????????????????? | | ?????????????????????????????????????????????????? | | ?????????????????????????????????????????????????? | | ?????????????????????????????????????????????????? | | ?????????????????????????????????????????????????? | | ?????????????????????????????????????????????????? | | ?????????????????????????????????????????????????? | | ?????????????????????????????????????????????????? | | ?????????????????????????????????##+##???????????? | | ?????????????????????????????????# +???????????? | | ?????????????????????????????????# #???????????? | | ?????????????????????????????????/ +???????????? | | ?????????????????????????????????# #??????###### | | ?????????????????????????????????# #??????# | | ?????????????????????????????????# #??????#! """ | | ?????????????????????????????????# #??????# """ | | ???????????????????????########### #??????# """ | | ???????????????????????# """" # ######## | | ???????????????????????# """" # # """ | | ???????????????????????# = """"%# # """ | | ???????????????????????# @% hg /=+% T + """ | | ???????????????????????# g g[# # | | ???????????????????????# # # """ | | ???????????????????????# k # ## """ | | ???????????????????????# # ## """ | | ???????????????????????########### ## | | ?????????????????????????????????# ####### | | ?????????????????????????????????# % # """ | | ?????????????????????????????????####### # """ | | ???????????????????????????????????????# # """ | | ???????????????????????????????????????# + | | ???????????????????????????????????????# # | | ???????????????????????????????????????# # | | ???????????????????????????????????????# ####### | | ??????????????????????????????????????## # | | ??????????????????????????????????????#T # | | ?????????????????????????????########### # = | | ?????????????????????????????# # # == | | ?????????????????????????????# """ # %#! ! | | ?????????????????????????????# """ "" # =!#=*!= | | ?????????????????????????????? """ "" "*%="*""= | | ?????????????????????????????? """ T" # !*#= "| | | ???????????????????????????????""" "" # !#=== | | ??????????????????????????????? "" # # !%% | | ?????????????????????????????? # # ! | +----------------------------------------------------+ Best States ------------- Heat Dissipation 55 Energy Generation 14 Energy Capacity 250 Matter Stores 300 Matter Capacity 300 Sight Range 16 Robot Scan Range 20 Terrain Scan Density 10 Evasion (%) 55 Recoil Reduction 2 Item Schematics ----------------- None Robot Schematics ------------------ None Fabricated ------------ Nothing Repaired ---------- Nothing Alien Tech Used ----------------- None Achievements -------------- None Challenges ------------ None Game ------ Seed ArchitectConcussivePod Manual? 0 Play Time 00:29:58 Cumulative 19.7 hours Start 2025.09.25 @ 20:39:53 End 2025.09.26 @ 08:39:48 Sessions 1 Manual Loads 0 Difficulty Rogue Special Mode None Game No. 65 Rogue 59 Adventurer 6 Explorer 0 Win Type - Total 0 Types 0/0/0/0/0/0/0/0/0/0 Lore% 10 Gallery% 18 Achievement% 19 Wizard Run 0 Options --------- Layout 1 ASCII 0 Keyboard 0 Movement Numpad Keybinds 0 Fullscreen 1 Font 24/Smallcaps Map View 50x40 Zoom Use 0% Tactical HUD 1 Map Filters NONE Filters NONE Steam 1 RUN: 978c21d2-a863-404a-81b2-a58e78d22fdd